fUST/lending_fUST_20240513
["ID","MTS","AMOUNT","RATE_DAILY","PERIOD"]
[326917762,1715578158030,-500.0,0.0002091,2]
[326917763,1715578158052,-500.0,0.0002091,2]
[326917764,1715578158074,-500.0,0.0002091,2]
[326917765,1715578158095,-500.0,0.0002091,2]
[326917766,1715578158117,-500.0,0.0002091,2]
[326917767,1715578158138,-500.0,0.0002091,2]
[326917768,1715578158157,-222.46350287,0.00020911,2]
[326917769,1715578158179,-59325.71232151,0.00020911,2]
[326917770,1715578158200,-9387.04651107,0.00020912,2]
[326917771,1715578158220,-175.922043,0.00021918,2]
[326917772,1715578158239,-6313.0840902,0.00021918,2]
[326917773,1715578158264,-5229.71545665,0.00022,2]
[326917774,1715578158284,-175.922043,0.000232,2]
[326917775,1715578158305,-169.292664,0.00023562,2]
[326917776,1715578158324,-162.577422,0.00023562,2]
[326917777,1715578158344,-157.599897,0.00023562,2]
[326917778,1715578158364,-175.922043,0.00024482,2]
[326917779,1715578158385,-380.0,0.00024658,2]
[326917780,1715578158405,-369.25801586,0.00025,2]
[326917781,1715578158424,-395.32296758,0.00025,2]
[326917782,1715578158444,-156.53239495,0.0002739,2]
[326917783,1715578158464,-221.92580943,0.00028,2]
[326917784,1715578158485,-157.599897,0.00033873,2]
[326917785,1715578158615,150.0,0.000239,2]
[326917786,1715578158822,150.0,0.000289,2]
[326917787,1715578165337,500.0,0.0002091,2]
[326917807,1715578238590,-159.90474983,0.000429,2]
[326917809,1715578238600,-168.0,0.00043,90]
[326917811,1715578238609,-9005.09,0.0004389,3]
[326917813,1715578238618,-6709.49630636,0.0004389,3]
[326917815,1715578238629,-794.74369364,0.0004389,3]
[326917817,1715578238639,-723.59651378,0.0004389,3]
[326917837,1715578240801,-5529.94348622,0.0004389,3]
[326917838,1715578240812,-5172.9814965,0.0004389,3]
[326917839,1715578240825,-38.2985035,0.0004389,3]
[326917840,1715578240834,-343.36869148,0.00043899,120]
[326917841,1715578240843,-169.81544467,0.00043899,31]
[326917842,1715578240853,-412.68907678,0.00043899,120]
[326917843,1715578240862,-1635.64133081,0.000439,11]
[326917844,1715578240875,-1291.13940657,0.000439,11]
[326917845,1715578240884,-3437.37734143,0.000439,10]
[326917846,1715578240897,-41662.2562324,0.000439,10]
[326917847,1715578240908,-18247.80370373,0.000439,10]
[326917908,1715578243957,-10452.03395174,0.000439,10]
[326918007,1715578246648,-1189.14690157,0.000439,10]
[326918008,1715578283390,2256.08794858,0.00020913,2]
[326918010,1715578403329,458.23623593,9.999e-05,2]
[326918019,1715579036416,210.17601197,9.999e-05,2]
[326918023,1715579240167,-175.14667664,0.00020244,2]
[326918024,1715579240190,-10325.75504045,0.00020245,2]
[326918025,1715579345151,-175.14667664,0.00020244,2]
[326918026,1715579345172,-5648.82601097,0.00020245,2]
[326918027,1715579350110,-8925.41894858,0.00020245,2]
[326918028,1715579350132,-161.97180248,0.00020812,2]
[326918029,1715579350154,-566.90092287,0.00020912,2]
[326918030,1715579350174,-162.55997882,0.00020912,2]
[326918031,1715579350209,-169.1315941,0.00020912,2]
[326918032,1715579350232,-205.51368819,0.00020912,4]
[326918033,1715579350254,-819.84178634,0.00020912,2]
[326918034,1715579350276,-239.28469197,0.00020912,2]
[326918035,1715579350298,-418.17263887,0.00020912,2]
[326918036,1715579350320,-236.23137137,0.00020912,2]
[326918037,1715579350342,-802.7829814,0.00020912,2]
[326918038,1715579350367,-1007.88974121,0.00020913,2]
[326918039,1715579350389,-14482.30078932,0.00020913,2]
[326918040,1715579358115,-17415.92292307,0.00020913,2]
[326918041,1715579358136,-850.6966747,0.00021818,2]
[326918042,1715579358160,-166.6666663,0.00021918,2]
[326918043,1715579358184,-179.196617,0.00022728,2]
[326918044,1715579358207,-162.791754,0.00023562,2]
[326918045,1715579358232,-162.730736,0.00023562,2]
[326918046,1715579358258,-16754.37171362,0.000244,2]
[326918047,1715579358285,-352.11556039,0.00025,2]
[326918048,1715579358307,-1839.60013803,0.00025,2]
[326918049,1715579358329,-1018.58183635,0.00025,2]
[326918050,1715579358353,-1063.21897667,0.00025,14]
[326918051,1715579358374,-11144.03832434,0.00026,2]
[326918052,1715579358400,-641.94,0.0002699,3]
[326918053,1715579358421,-296.99245836,0.00026999,2]
[326918054,1715579358443,-246.88764913,0.00026999,2]
[326918055,1715579358465,-500.0,0.00026999,2]
[326918056,1715579358487,-500.0,0.00026999,2]
[326918057,1715579358508,-183.41049268,0.00026999,2]
[326918058,1715579358530,-323.80672303,0.00026999,2]
[326918059,1715579358552,-217.65258841,0.00026999,2]
[326918060,1715579358573,-500.0,0.00026999,2]
[326918061,1715579358594,-3098.32722342,0.00027,15]
[326918062,1715579358617,-223.05844385,0.0002739,2]
[326918063,1715579358639,-198.1561113,0.000274,2]
[326918064,1715579358661,-4415.3,0.0002798,3]
[326918065,1715579358684,-5298.36,0.0002799,3]
[326918066,1715579358705,-17689.02813992,0.00028,4]
[326918067,1715579358728,-209.3446364,0.0002845,2]
[326918068,1715579358751,-161.97180247,0.0002855,2]
[326918069,1715579358774,-3679.42,0.0002876,3]
[326918070,1715579358800,-2003.7191202,0.0002877,11]
[326918071,1715579358826,-79726.29567072,0.0002877,2]
[326918072,1715579361108,-154.69061876,0.00020912,2]
[326918073,1715579361128,-63100.31955206,0.0002877,2]
[326918101,1715579432634,-154.69061876,0.00020912,2]
[326918102,1715579432644,-190.53889062,0.00020913,2]
[326918103,1715579432653,-1302.8267446,0.00020913,2]
[326918104,1715579432662,-150.0,0.0002667,2]
[326918105,1715579432672,-7073.68448655,0.0002877,2]
[326918106,1715579432681,-209.68186697,0.0002877,2]
[326918107,1715579432691,-24016.37679435,0.000299,2]
[326918108,1715579432701,-6953.04857492,0.0003,2]
[326918109,1715579432710,-260.26991282,0.00032,4]
[326918110,1715579432720,-641.795,0.00032044,2]
[326918111,1715579432729,-151.152,0.00032044,2]
[326918112,1715579432738,-150.175,0.00032044,2]
[326918113,1715579432747,-209.34463639,0.00032263,2]
[326918114,1715579432756,-162.730736,0.00033014,2]
[326918115,1715579432766,-10689.38493145,0.00034,5]
[326918116,1715579432775,-175.011156,0.0003446,2]
[326918117,1715579432784,-12080.43271466,0.000349,2]
[326918118,1715579432794,-211.09698819,0.00035,4]
[326918119,1715579432803,-1100.05181318,0.00035,30]
[326918120,1715579432814,-10310.99804873,0.00035,2]
[326918121,1715579432824,-495.0,0.00035044,2]
[326918122,1715579432833,-150.0,0.00035044,2]
[326918123,1715579432843,-941.67179657,0.000356,30]
[326918124,1715579432852,-209.34463639,0.00036075,2]
[326918125,1715579432862,-1780.13949335,0.00037,2]
[326918126,1715579432873,-1403.25621185,0.00038,30]
[326918127,1715579432882,-444.52600783,0.00038044,2]
[326918145,1715579438751,-264.0,0.0003,2]
[326918146,1715579438762,-50.47399217,0.00038044,2]
[326918147,1715579438772,-307.56539504,0.00038499,15]
[326918149,1715579438782,-350.04015489,0.00038499,15]
[326918162,1715579440968,-150.0,0.00032044,2]
[326918163,1715579440977,-150.0,0.00035044,2]
[326918164,1715579440987,-58.54797055,0.00038499,15]
[326918165,1715579440996,-1833.50367553,0.000385,60]
[326918166,1715579441008,-1205.51120499,0.000385,60]
[326918167,1715579441018,-209.34463639,0.00039888,2]
[326918168,1715579441030,-142.95541539,0.00040934,3]
[326918214,1715579446874,-154.69061876,0.00020913,2]
[326918215,1715579446884,-231.745,0.00032044,2]
[326918216,1715579446893,-2804.73844589,0.00040934,3]
[326918222,1715579534993,-434.784647,0.00018821,2]
[326918235,1715580036973,802.7829814,9.999e-05,2]
[326918236,1715580102867,154.69061876,9.999e-05,2]
[326918241,1715580353190,-154.69061876,0.00018585,2]
[326918242,1715580353213,-802.7829814,0.00018586,2]
[326918243,1715580353236,-1899.80278215,0.00018587,2]
[326918247,1715580454356,-802.7829814,0.00018586,2]
[326918248,1715580454383,-1100.19721785,0.00018587,2]
[326918249,1715580454406,-250.0,0.00018759,2]
[326918250,1715580454432,-167.15395762,0.00019017,2]
[326918251,1715580454454,-24900.0,0.00019018,2]
[326918252,1715580454586,-239.293394,0.00019168,2]
[326918253,1715580454608,-164.36252321,0.00019171,2]
[326918254,1715580454629,-175.011156,0.00019178,2]
[326918255,1715580454650,-202.7142064,0.0001925,2]
[326918256,1715580454669,-179.7654405,0.00019272,2]
[326918257,1715580454690,-156.14973285,0.000199,2]
[326918258,1715580454711,-189.42689207,0.0002043,2]
[326918259,1715580454731,-236.81624869,0.00020812,2]
[326918260,1715580454753,-1342.40341974,0.0002091,2]
[326918261,1715580454774,-1119.34459102,0.0002091,2]
[326918267,1715580547100,-802.7829814,0.00020812,2]
[326918268,1715580547121,-933.17835779,0.00020813,2]
[326918269,1715580547140,-349.35707798,0.0002091,2]
[326918271,1715580571090,-1216.49876055,0.0002091,2]
[326918272,1715580571109,-237.03580854,0.0002091,2]
[326918273,1715580571128,-612.24409078,0.00020911,2]
[326918274,1715580571149,-18178.47926733,0.00020912,2]
[326918294,1715580632081,-753.81570808,0.00020847,2]
[326918319,1715580638014,-1935.29860554,0.00020847,2]
[326918321,1715580638580,-1851.78392373,0.00020847,2]
[326918337,1715580642358,-20359.10176265,0.00020847,2]
[326918338,1715580642368,-8175.7681126,0.00020912,2]
[326918339,1715580642378,-501.35013585,0.00020912,2]
[326918340,1715580642387,-1885.6784914,0.00020913,2]
[326918341,1715580642396,-157.00847729,0.00021818,2]
[326918342,1715580642409,-173.608198,0.00021918,2]
[326918343,1715580642418,-162.825453,0.00023562,2]
[326918344,1715580642427,-164.159937,0.00023562,2]
[326918345,1715580642436,-162.577422,0.00023562,2]
[326918346,1715580642447,-173.608198,0.00024482,2]
[326918347,1715580642456,-500.0,0.00024998,2]
[326918348,1715580642465,-500.0,0.00024998,2]
[326918349,1715580642474,-500.0,0.00024998,2]
[326918350,1715580642486,-500.0,0.00024998,2]
[326918351,1715580642495,-500.0,0.00024998,2]
[326918354,1715580642505,-500.0,0.00024998,2]
[326918357,1715580642514,-500.0,0.00024998,2]
[326918360,1715580642524,-500.0,0.00024998,2]
[326918363,1715580642533,-500.0,0.00024998,2]
[326918365,1715580642541,-500.0,0.00024998,2]
[326918367,1715580642550,-500.0,0.00024998,2]
[326918369,1715580642560,-500.0,0.00024998,2]
[326918371,1715580642569,-634.79016564,0.00024998,2]
[326918373,1715580642578,-472.57538216,0.00024998,2]
[326918375,1715580642587,-500.0,0.00024998,2]
[326918376,1715580642596,-500.0,0.00024998,2]
[326918377,1715580642605,-500.0,0.00024998,2]
[326918378,1715580642614,-500.0,0.00024998,2]
[326918379,1715580642624,-500.0,0.00024998,2]
[326918380,1715580642633,-500.0,0.00024998,2]
[326918381,1715580642642,-328.35079658,0.00024998,2]
[326918383,1715580642651,-500.0,0.00024998,2]
[326918385,1715580642660,-500.0,0.00024998,2]
[326918387,1715580642670,-430.0,0.00024998,2]
[326918389,1715580642679,-500.0,0.00024998,2]
[326918391,1715580642688,-500.0,0.00024998,2]
[326918393,1715580642698,-318.55036983,0.00024998,2]
[326918401,1715580642856,-181.44963017,0.00024998,2]
[326918402,1715580642866,-500.0,0.00024998,2]
[326918403,1715580642878,-168.18342093,0.00025,2]
[326918405,1715580642888,-155.65086409,0.00025,2]
[326918411,1715580643290,-239.293394,0.00020391,2]
[326918412,1715580643300,-246.11164784,0.00025,2]
[326918414,1715580643310,-155.32213593,0.00025,2]
[326918416,1715580643320,-409.75368061,0.00027192,2]
[326918418,1715580643378,-210.76753973,0.00027192,2]
[326918419,1715580643387,-106.70761386,0.00032044,2]
[326918420,1715580643401,-388.29238614,0.00032044,2]
[326918421,1715580643412,-157.00847729,0.00032809,2]
[326918422,1715580643422,-289.89676959,0.00034,5]
[326918458,1715581062980,-217.54852677,0.00020812,2]
[326918459,1715581063004,-164.3625232,0.00020812,2]
[326918460,1715581063029,-839.31993379,0.00020912,2]
[326918461,1715581063053,-155.17594753,0.00020912,2]
[326918462,1715581063077,-154.87609912,0.00020912,2]
[326918463,1715581063105,-468.71696959,0.00020913,2]
[326918464,1715581064316,-777.28151379,0.00020913,2]
[326918465,1715581064343,-1222.71848621,0.00021237,2]
[326918466,1715581065065,-2000.0,0.00021237,2]
[326918489,1715581747460,-1579.79028549,0.00020075,2]
[326918492,1715581768066,-6179.80921861,0.00020075,2]
[326918493,1715581768089,-98.44567677,0.00020258,2]
[326918515,1715581833239,-80.75094023,0.00020258,2]
[326918516,1715581833252,-665.67444412,0.00020912,2]
[326918517,1715581833261,-412.8985133,0.00020912,2]
[326918518,1715581833270,-2085.31841717,0.00020912,2]
[326918519,1715581833278,-2594.49494001,0.00020913,2]
[326918520,1715581833287,-155.05561191,0.00021237,2]
[326918521,1715581833297,-157.599897,0.00023562,2]
[326918522,1715581833306,-162.791754,0.00023562,2]
[326918524,1715581833316,-2139.57016701,0.00034,5]
[326918526,1715581833325,-154.69061876,0.00034,4]
[326918527,1715581833334,-157.599897,0.00036164,2]
[326918528,1715581833344,-161.44538594,0.00037923,7]
[326918529,1715581833353,-800.17880967,0.00038,30]
[326918530,1715581833362,-161.44538594,0.00039475,7]
[326918531,1715581833371,-1002.61885647,0.0004,20]
[326918532,1715581833380,-444.0,0.000419,30]
[326918533,1715581833390,-8950.0,0.00042265,14]
[326918534,1715581833399,-14556.04750269,0.00042267,3]
[326918535,1715581833408,-816.53106311,0.00042366,28]
[326918536,1715581833418,-162.730736,0.00042466,2]
[326918537,1715581833429,-497.09118407,0.00042471,3]
[326918538,1715581833439,-500.0,0.00043035,31]
[326918539,1715581833450,-500.0,0.00043035,31]
[326918540,1715581833460,-270.0,0.00043035,31]
[326918541,1715581833469,-369.81675518,0.00043035,31]
[326918542,1715581833479,-500.0,0.00043035,31]
[326918543,1715581833489,-487.19890729,0.00043035,31]
[326918544,1715581833500,-540.68078956,0.00043035,31]
[326918545,1715581833509,-500.0,0.00043035,31]
[326918546,1715581833518,-1053.12264887,0.00043036,2]
[326918547,1715581833529,-379.8963885,0.00043084,30]
[326918548,1715581833539,-157.87749914,0.0004309,2]
[326918549,1715581833549,-171.1168908,0.000431,2]
[326918550,1715581833558,-171.11689077,0.00043133,2]
[326918551,1715581833567,-157.87749912,0.00043145,2]
[326918552,1715581833576,-171.11689077,0.00043167,2]
[326918553,1715581833585,-497.12,0.0004318,30]
[326918554,1715581833594,-287.69,0.0004318,30]
[326918555,1715581833603,-239.74,0.0004318,30]
[326918556,1715581833613,-414.27,0.0004319,30]
[326918557,1715581833622,-345.22,0.0004319,30]
[326918558,1715581833631,-199.78,0.0004319,30]
[326918559,1715581833640,-166.48,0.0004319,30]
[326918560,1715581833649,-832.45,0.0004319,30]
[326918561,1715581833659,-3614.93,0.0004319,3]
[326918562,1715581833667,-6354.36,0.0004319,3]
[326918563,1715581833677,-472.57643763,0.00043199,31]
[326918564,1715581833686,-2577.81841869,0.000432,11]
[326918565,1715581833694,-5797.76831247,0.000432,2]
[326918566,1715581833703,-4406.24203288,0.000432,5]
[326918567,1715581833716,-3253.53002861,0.000432,5]
[326918568,1715581833727,-2885.5,0.000432,5]
[326918589,1715581838223,-1982.75512572,0.000432,5]
[326919042,1715581846468,-952.95164947,0.000432,5]
[326919043,1715581846484,-531.6028881,0.000432,5]
[326919068,1715582779606,3206.87909048,9.999e-05,2]
[326919069,1715582803407,154.73694719,9.999e-05,2]
[326919070,1715582804933,522.60504703,9.999e-05,2]
[326919071,1715582806664,1449.196347,0.0001,2]
[326919072,1715582831327,802.7829814,9.999e-05,2]
[326919073,1715582845173,678.194534,0.00017839,2]
[326919074,1715582852186,-584.38770716,0.00018719,3]
[326919075,1715582852330,-180.0,0.00018817,2]
[326919076,1715582852352,-1320.93071001,0.00018817,2]
[326919079,1715582918422,413.03882179,9.999e-05,2]
[326919080,1715582952433,444.8132716,0.00017961,2]
[326919081,1715582959308,-2594.90254816,0.00018713,2]
[326919082,1715582959329,-1449.196347,0.00018714,2]
[326919083,1715582959350,-15705.76411353,0.00018715,2]
[326919084,1715582959371,-304.63377634,0.00018817,2]
[326919085,1715582959391,-154.73694719,0.00018817,2]
[326919086,1715582959412,-38349.66137503,0.00018819,2]
[326919087,1715582959434,-777.00730409,0.00018821,2]
[326919088,1715582959456,-1905.9836045,0.00018899,2]
[326919089,1715582959591,-437.3307943,0.00019178,4]
[326919090,1715582959612,-475.84079107,0.00019775,2]
[326919091,1715582959632,-894.24108922,0.00019775,2]
[326919092,1715582959653,-1008.49446179,0.00019775,2]
[326919093,1715582967124,-154.7215013,0.00019774,2]
[326919094,1715582967144,-6947.68659899,0.00019775,2]
[326919095,1715582967166,-922.46719568,0.00019775,2]
[326919096,1715582967186,-816.67373139,0.00019775,2]
[326919097,1715582967206,-605.94344679,0.00019775,2]
[326919098,1715582967226,-2145.41557119,0.00019775,2]
[326919099,1715582967247,-586.54693185,0.00019775,2]
[326919100,1715582967266,-169.69236626,0.00019775,2]
[326919101,1715582967291,-1883.45234337,0.00019775,2]
[326919102,1715582967312,-688.52224507,0.00019775,2]
[326919103,1715582967331,-155.10813337,0.00019775,2]
[326919104,1715582967354,-524.59234842,0.00019776,2]
[326919105,1715582967376,-500.0,0.00019776,2]
[326919106,1715582967396,-500.0,0.00019776,2]
[326919107,1715582967417,-500.0,0.00019776,2]
[326919108,1715582967438,-500.0,0.00019776,2]
[326919109,1715582967459,-500.0,0.00019776,2]
[326919110,1715582967480,-574.69480863,0.00019776,2]
[326919111,1715582967500,-500.0,0.00019776,2]
[326919112,1715582967520,-500.0,0.00019776,2]
[326919113,1715582967542,-500.0,0.00019776,2]
[326919114,1715582967565,-500.0,0.00019776,2]
[326919115,1715582967585,-500.0,0.00019776,2]
[326919116,1715582967606,-500.0,0.00019776,2]
[326919117,1715582967627,-500.0,0.00019776,2]
[326919118,1715582967649,-500.0,0.00019776,2]
[326919119,1715582967670,-500.0,0.00019776,2]
[326919120,1715582967690,-500.0,0.00019776,2]
[326919121,1715582967710,-500.0,0.00019776,2]
[326919122,1715582967732,-500.0,0.00019776,2]
[326919123,1715582967755,-500.0,0.00019776,2]
[326919124,1715582967775,-500.0,0.00019776,2]
[326919125,1715582967797,-280.15290174,0.00019776,2]
[326919126,1715582972216,-219.84709826,0.00019776,2]
[326919127,1715582972240,-500.0,0.00019776,2]
[326919128,1715582972262,-500.0,0.00019776,2]
[326919129,1715582972284,-500.0,0.00019776,2]
[326919130,1715582972306,-500.0,0.00019776,2]
[326919131,1715582972327,-401.26604584,0.00019776,2]
[326919132,1715582972348,-500.0,0.00019776,2]
[326919133,1715582972373,-500.0,0.00019776,2]
[326919134,1715582972393,-420.30135098,0.00019776,2]
[326919135,1715582972413,-500.0,0.00019776,2]
[326919136,1715582972434,-500.0,0.00019776,2]
[326919137,1715582972455,-500.0,0.00019776,2]
[326919138,1715582972476,-500.0,0.00019776,2]
[326919139,1715582972497,-500.0,0.00019776,2]
[326919140,1715582972519,-500.0,0.00019776,2]
[326919141,1715582972541,-500.0,0.00019776,2]
[326919142,1715582972564,-500.0,0.00019776,2]
[326919143,1715582972584,-500.0,0.00019776,2]
[326919144,1715582972606,-500.0,0.00019776,2]
[326919145,1715582972626,-500.0,0.00019776,2]
[326919146,1715582972647,-500.0,0.00019776,2]
[326919147,1715582972670,-500.0,0.00019776,2]
[326919148,1715582972693,-500.0,0.00019776,2]
[326919149,1715582972715,-500.0,0.00019776,2]
[326919150,1715582972738,-500.0,0.00019776,2]
[326919151,1715582972759,-500.0,0.00019776,2]
[326919152,1715582972779,-500.0,0.00019776,2]
[326919153,1715582972803,-500.0,0.00019776,2]
[326919154,1715582972825,-500.0,0.00019776,2]
[326919155,1715582972846,-558.60154186,0.00019776,2]
[326919156,1715582972867,-500.0,0.00019776,2]
[326919157,1715582972888,-500.0,0.00019776,2]
[326919158,1715582972909,-500.0,0.00019776,2]
[326919159,1715582972932,-500.0,0.00019776,2]
[326919160,1715582972952,-500.0,0.00019776,2]
[326919161,1715582972974,-500.0,0.00019776,2]
[326919162,1715582972994,-500.0,0.00019776,2]
[326919163,1715582973017,-500.0,0.00019776,2]
[326919164,1715582973038,-500.0,0.00019776,2]
[326919165,1715582973060,-500.0,0.00019776,2]
[326919166,1715582973080,-500.0,0.00019776,2]
[326919167,1715582973102,-500.0,0.00019776,2]
[326919168,1715582973126,-500.0,0.00019776,2]
[326919169,1715582973149,-500.0,0.00019776,2]
[326919170,1715582973170,-500.0,0.00019776,2]
[326919171,1715582973194,-500.0,0.00019776,2]
[326919172,1715582973216,-500.0,0.00019776,2]
[326919173,1715582973238,-500.0,0.00019776,2]
[326919174,1715582973260,-500.0,0.00019776,2]
[326919175,1715582973285,-500.0,0.00019776,2]
[326919176,1715582973306,-500.0,0.00019776,2]
[326919177,1715582973328,-500.0,0.00019776,2]
[326919178,1715582973350,-500.0,0.00019776,2]
[326919179,1715582973371,-500.0,0.00019776,2]
[326919180,1715582973482,-500.0,0.00019776,2]
[326919181,1715582973505,-500.0,0.00019776,2]
[326919182,1715582973527,-500.0,0.00019776,2]
[326919183,1715582973551,-534.99839934,0.00019776,2]
[326919184,1715582973573,-500.0,0.00019776,2]
[326919185,1715582973596,-500.0,0.00019776,2]
[326919186,1715582973619,-500.0,0.00019776,2]
[326919187,1715582973640,-500.0,0.00019776,2]
[326919188,1715582973662,-500.0,0.00019776,2]
[326919189,1715582973684,-500.0,0.00019776,2]
[326919190,1715582973706,-500.0,0.00019776,2]
[326919191,1715582973728,-500.0,0.00019776,2]
[326919192,1715582973750,-500.0,0.00019776,2]
[326919193,1715582973771,-500.0,0.00019776,2]
[326919194,1715582973795,-500.0,0.00019776,2]
[326919195,1715582973816,-500.0,0.00019776,2]
[326919196,1715582973839,-500.0,0.00019776,2]
[326919197,1715582973860,-500.0,0.00019776,2]
[326919198,1715582973883,-500.0,0.00019776,2]
[326919199,1715582973906,-500.0,0.00019776,2]
[326919200,1715582973927,-500.0,0.00019776,2]
[326919201,1715582973949,-500.0,0.00019776,2]
[326919202,1715582973970,-500.0,0.00019776,2]
[326919203,1715582973991,-500.0,0.00019776,2]
[326919204,1715582974012,-500.0,0.00019776,2]
[326919205,1715582974035,-697.68978073,0.00019776,2]
[326919206,1715582974057,-697.68978073,0.00019776,2]
[326919207,1715582974078,-697.68978073,0.00019776,2]
[326919208,1715582974100,-697.68978073,0.00019776,2]
[326919209,1715582974125,-500.0,0.00019776,2]
[326919210,1715582974147,-697.68978073,0.00019776,2]
[326919211,1715582974168,-697.68978073,0.00019776,2]
[326919212,1715582974190,-500.0,0.00019776,2]
[326919213,1715582974211,-697.68978073,0.00019776,2]
[326919214,1715582974230,-500.0,0.00019776,2]
[326919215,1715582974251,-697.68978073,0.00019776,2]
[326919216,1715582974271,-602.25570566,0.00019776,2]
[326919217,1715582974296,-697.68978073,0.00019776,2]
[326919218,1715582974319,-697.68978073,0.00019776,2]
[326919219,1715582974340,-697.68978073,0.00019776,2]
[326919220,1715582974363,-697.68978073,0.00019776,2]
[326919221,1715582974387,-697.68978073,0.00019776,2]
[326919222,1715582974411,-697.68978073,0.00019776,2]
[326919223,1715582974434,-697.68978073,0.00019776,2]
[326919224,1715582974456,-697.68978073,0.00019776,2]
[326919225,1715582974477,-697.68978073,0.00019776,2]
[326919226,1715582974499,-697.68978073,0.00019776,2]
[326919227,1715582974522,-697.68978073,0.00019776,2]
[326919228,1715582974545,-697.68978073,0.00019776,2]
[326919229,1715582974568,-697.68978073,0.00019776,2]
[326919230,1715582974589,-697.68978073,0.00019776,2]
[326919231,1715582974611,-697.68978073,0.00019776,2]
[326919232,1715582974633,-697.68978073,0.00019776,2]
[326919233,1715582974655,-697.68978073,0.00019776,2]
[326919234,1715582974676,-697.68978073,0.00019776,2]
[326919235,1715582974698,-697.68978073,0.00019776,2]
[326919236,1715582974721,-697.68978073,0.00019776,2]
[326919237,1715582974746,-697.68978073,0.00019776,2]
[326919238,1715582974769,-697.68978073,0.00019776,2]
[326919239,1715582974793,-697.68978073,0.00019776,2]
[326919240,1715582974814,-697.68978073,0.00019776,2]
[326919241,1715582974839,-697.68978073,0.00019776,2]
[326919242,1715582974863,-500.0,0.00019776,2]
[326919243,1715582974888,-697.68978073,0.00019776,2]
[326919244,1715582974914,-697.68978073,0.00019776,2]
[326919245,1715582974940,-697.68978073,0.00019776,2]
[326919246,1715582974961,-697.68978073,0.00019776,2]
[326919247,1715582974982,-697.68978077,0.00019776,2]
[326919248,1715582975003,-697.68978077,0.00019776,2]
[326919249,1715582975031,-697.68978077,0.00019776,2]
[326919250,1715582975055,-24900.0,0.00019777,2]
[326919251,1715582975078,-500.0,0.00019999,2]
[326919252,1715582975098,-415.78944171,0.00019999,2]
[326919253,1715582975124,-215.90743749,0.00019999,2]
[326919254,1715582975146,-461.16328846,0.00019999,2]
[326919255,1715582975169,-412.24398437,0.00019999,2]
[326919256,1715582975194,-56057.20100341,0.0002,2]
[326919257,1715582975217,-1630.30159012,0.00020911,2]
[326919258,1715582975239,-2105.04768515,0.00020911,2]
[326919259,1715582975261,-170.76953141,0.00020912,2]
[326919260,1715582975282,-386.13389028,0.00020912,2]
[326919261,1715582975306,-1797.74414774,0.00020912,2]
[326919262,1715582975327,-151.0,0.00020912,2]
[326919263,1715582975348,-151.0,0.00020912,2]
[326919264,1715582975369,-151.0,0.00020912,2]
[326919265,1715582975389,-151.0,0.00020912,2]
[326919266,1715582975409,-151.0,0.00020912,2]
[326919267,1715582975430,-243.491934,0.00020912,2]
[326919268,1715582975450,-1574.720204,0.00020912,2]
[326919269,1715582975470,-1574.720204,0.00020912,2]
[326919270,1715582975491,-1574.720204,0.00020912,2]
[326919271,1715582975511,-186.170515,0.00020912,2]
[326919272,1715582975532,-1574.720204,0.00020912,2]
[326919273,1715582975554,-1574.720204,0.00020912,2]
[326919274,1715582975577,-1574.720204,0.00020912,2]
[326919275,1715582975599,-151.0,0.00020912,2]
[326919276,1715582975620,-151.0,0.00020912,2]
[326919277,1715582975641,-151.0,0.00020912,2]
[326919278,1715582975663,-151.0,0.00020912,2]
[326919279,1715582975682,-25550.00395735,0.00020913,2]
[326919280,1715582975704,-175.922043,0.00021918,2]
[326919281,1715582975729,-151.0,0.00021918,2]